fUSD/lending_fUSD_20250618
["ID","MTS","AMOUNT","RATE_DAILY","PERIOD"]
[366397279,1750230651497,-490.0,0.00016602,2]
[366397280,1750230651506,-1357.82,0.00016602,2]
[366397281,1750230651515,-707.84,0.00016602,2]
[366397282,1750230651525,-944.66,0.00016602,2]
[366397283,1750230651535,-493.63,0.00016602,2]
[366397284,1750230651544,-1344.39,0.00016602,2]
[366397285,1750230651555,-561.14,0.00016602,2]
[366397286,1750230651565,-490.0,0.00016602,2]
[366397287,1750230651575,-490.0,0.00016602,2]
[366397288,1750230651585,-490.0,0.00016602,2]
[366397289,1750230651595,-490.0,0.00016602,2]
[366397290,1750230651604,-490.0,0.00016602,2]
[366397291,1750230651615,-490.0,0.00016602,2]
[366397292,1750230651625,-490.0,0.00016602,2]
[366397293,1750230651635,-562.97,0.00016602,2]
[366397294,1750230651645,-490.0,0.00016602,2]
[366397295,1750230651655,-490.0,0.00016602,2]
[366397296,1750230651664,-825.62,0.00016602,2]
[366397297,1750230651674,-490.0,0.00016602,2]
[366397298,1750230651684,-490.0,0.00016602,2]
[366397299,1750230651694,-490.0,0.00016602,2]
[366397300,1750230651709,-618.79,0.00016602,2]
[366397301,1750230651719,-506.2,0.00016602,2]
[366397302,1750230651728,-490.0,0.00016602,2]
[366397303,1750230651738,-490.0,0.00016602,2]
[366397304,1750230651747,-825.67,0.00016602,2]
[366397305,1750230651757,-757.49,0.00016602,2]
[366397306,1750230651767,-490.0,0.00016602,2]
[366397307,1750230651776,-490.0,0.00016602,2]
[366397308,1750230651786,-783.98,0.00016602,2]
[366397309,1750230651796,-490.0,0.00016602,2]
[366397310,1750230651806,-490.0,0.00016602,2]
[366397311,1750230651816,-490.0,0.00016602,2]
[366397312,1750230651826,-490.0,0.00016602,2]
[366397313,1750230651836,-967.69,0.00016602,2]
[366397314,1750230651846,-620.36,0.00016602,2]
[366397315,1750230651856,-1204.24,0.00016602,2]
[366397316,1750230651867,-929.16,0.00016602,2]
[366397317,1750230651876,-490.0,0.00016602,2]
[366397318,1750230651886,-490.0,0.00016602,2]
[366397319,1750230651895,-614.64,0.00016602,2]
[366397320,1750230651904,-490.0,0.00016602,2]
[366397321,1750230651914,-490.0,0.00016602,2]
[366397322,1750230651924,-543.59,0.00016602,2]
[366397323,1750230651933,-490.0,0.00016602,2]
[366397324,1750230651943,-490.0,0.00016602,2]
[366397325,1750230651953,-490.0,0.00016602,2]
[366397326,1750230651962,-645.48,0.00016602,2]
[366397327,1750230651972,-1486.82,0.00016602,2]
[366397328,1750230651982,-911.53,0.00016602,2]
[366397329,1750230651991,-734.83,0.00016602,2]
[366397330,1750230652001,-727.86,0.00016602,2]
[366397331,1750230652011,-490.0,0.00016602,2]
[366397332,1750230652021,-490.0,0.00016602,2]
[366397333,1750230652030,-490.0,0.00016602,2]
[366397334,1750230652040,-490.0,0.00016602,2]
[366397335,1750230652050,-490.0,0.00016602,2]
[366397336,1750230652060,-490.0,0.00016602,2]
[366397337,1750230652070,-490.0,0.00016602,2]
[366397338,1750230652080,-534.16,0.00016602,2]
[366397339,1750230652089,-490.0,0.00016602,2]
[366397340,1750230652099,-490.0,0.00016602,2]
[366397341,1750230652112,-490.0,0.00016602,2]
[366397342,1750230652121,-1751.6,0.00016602,2]
[366397343,1750230652131,-958.66,0.00016602,2]
[366397344,1750230652140,-490.0,0.00016602,2]
[366397345,1750230652150,-490.0,0.00016602,2]
[366397346,1750230652159,-490.0,0.00016602,2]
[366397347,1750230652169,-712.01,0.00016602,2]
[366397348,1750230652179,-496.41,0.00016602,2]
[366397349,1750230652188,-490.0,0.00016602,2]
[366397350,1750230652198,-1124.25,0.00016602,2]
[366397351,1750230652207,-490.0,0.00016602,2]
[366397352,1750230652217,-1143.72,0.00016602,2]
[366397353,1750230652227,-732.44,0.00016602,2]
[366397354,1750230652236,-906.12,0.00016602,2]
[366397355,1750230652246,-490.0,0.00016602,2]
[366397356,1750230652256,-737.19,0.00016602,2]
[366397357,1750230652265,-490.0,0.00016602,2]
[366397358,1750230652275,-555.71,0.00016602,2]
[366397359,1750230652284,-490.0,0.00016602,2]
[366397360,1750230652294,-1187.52,0.00016602,2]
[366397361,1750230652303,-490.0,0.00016602,2]
[366397362,1750230652312,-707.3,0.00016602,2]
[366397363,1750230652322,-490.0,0.00016602,2]
[366397364,1750230652332,-490.0,0.00016602,2]
[366397365,1750230652341,-490.0,0.00016602,2]
[366397366,1750230652351,-1541.15,0.00016602,2]
[366397367,1750230652361,-674.55,0.00016602,2]
[366397368,1750230652371,-490.0,0.00016602,2]
[366397369,1750230652380,-490.0,0.00016602,2]
[366397370,1750230652389,-490.0,0.00016602,2]
[366397371,1750230652399,-490.0,0.00016602,2]
[366397372,1750230652408,-246.39266234,0.00016602,2]
[366397373,1750230652418,-555.87,0.00016602,2]
[366397374,1750230652428,-490.0,0.00016602,2]
[366397375,1750230652438,-825.95,0.00016602,2]
[366397376,1750230652448,-1926.35,0.00016602,2]
[366397377,1750230652458,-621.36,0.00016602,2]
[366397378,1750230652467,-556.02,0.00016602,2]
[366397379,1750230652477,-490.0,0.00016602,2]
[366397380,1750230652488,-986.8,0.00016602,2]
[366397381,1750230652498,-490.0,0.00016602,2]
[366397382,1750230652507,-490.0,0.00016602,2]
[366397383,1750230652517,-2000.01,0.00016602,2]
[366397384,1750230652526,-725.73,0.00016602,2]
[366397385,1750230652536,-490.0,0.00016602,2]
[366397386,1750230652548,-1175.82,0.00016602,2]
[366397387,1750230652558,-490.0,0.00016602,2]
[366397388,1750230652568,-490.0,0.00016602,2]
[366397389,1750230652578,-842.31,0.00016602,2]
[366397390,1750230652588,-2722.99,0.00016602,2]
[366397391,1750230652598,-490.0,0.00016602,2]
[366397392,1750230652608,-490.0,0.00016602,2]
[366397393,1750230652621,-490.0,0.00016602,2]
[366397394,1750230652636,-848.93,0.00016602,2]
[366397395,1750230652647,-512.35,0.00016602,2]
[366397396,1750230652657,-490.0,0.00016602,2]
[366397397,1750230652667,-948.99,0.00016602,2]
[366397398,1750230652676,-490.0,0.00016602,2]
[366397399,1750230652691,-1471.12,0.00016602,2]
[366397400,1750230652701,-490.0,0.00016602,2]
[366397401,1750230652711,-490.0,0.00016602,2]
[366397402,1750230652725,-490.98,0.00016602,2]
[366397403,1750230652735,-490.0,0.00016602,2]
[366397404,1750230652744,-490.0,0.00016602,2]
[366397405,1750230652754,-490.0,0.00016602,2]
[366397406,1750230652764,-490.0,0.00016602,2]
[366397407,1750230652774,-490.0,0.00016602,2]
[366397408,1750230652783,-490.0,0.00016602,2]
[366397409,1750230652793,-490.0,0.00016602,2]
[366397410,1750230652802,-490.0,0.00016602,2]
[366397411,1750230652812,-660.06,0.00016602,2]
[366397412,1750230652822,-490.0,0.00016602,2]
[366397413,1750230652832,-528.41,0.00016602,2]
[366397414,1750230652842,-490.0,0.00016602,2]
[366397415,1750230652851,-490.0,0.00016602,2]
[366397416,1750230652863,-657.29,0.00016602,2]
[366397417,1750230652873,-490.0,0.00016602,2]
[366397418,1750230652883,-1349.21,0.00016602,2]
[366397419,1750230652893,-490.0,0.00016602,2]
[366397420,1750230652902,-490.0,0.00016602,2]
[366397421,1750230652912,-490.0,0.00016602,2]
[366397422,1750230652922,-490.0,0.00016602,2]
[366397423,1750230652931,-820.87,0.00016602,2]
[366397424,1750230652942,-511.16,0.00016602,2]
[366397425,1750230652952,-490.0,0.00016602,2]
[366397426,1750230652962,-490.0,0.00016602,2]
[366397427,1750230652972,-1536.75,0.00016602,2]
[366397428,1750230652982,-1711.44,0.00016602,2]
[366397429,1750230652991,-490.0,0.00016602,2]
[366397430,1750230653001,-490.0,0.00016602,2]
[366397431,1750230653011,-1340.89,0.00016602,2]
[366397432,1750230653020,-490.0,0.00016602,2]
[366397433,1750230653030,-1861.69,0.00016602,2]
[366397434,1750230653040,-490.0,0.00016602,2]
[366397435,1750230653050,-490.0,0.00016602,2]
[366397436,1750230653060,-490.0,0.00016602,2]
[366397437,1750230653070,-490.0,0.00016602,2]
[366397438,1750230653079,-916.29,0.00016602,2]
[366397439,1750230653089,-490.0,0.00016602,2]
[366397440,1750230653099,-490.0,0.00016602,2]
[366397441,1750230653113,-490.0,0.00016602,2]
[366397442,1750230653123,-1148.32,0.00016602,2]
[366397443,1750230653132,-490.0,0.00016602,2]
[366397444,1750230653142,-490.0,0.00016602,2]
[366397445,1750230653153,-490.0,0.00016602,2]
[366397446,1750230653163,-490.0,0.00016602,2]
[366397447,1750230653172,-490.0,0.00016602,2]
[366397448,1750230653184,-490.0,0.00016602,2]
[366397449,1750230653194,-617.91,0.00016602,2]
[366397450,1750230653204,-1137.67,0.00016602,2]
[366397451,1750230653213,-2472.57,0.00016602,2]
[366397452,1750230653223,-447.24788218,0.00016602,2]
[366397453,1750230653233,-696.26,0.00016602,2]
[366397454,1750230653242,-725.64,0.00016602,2]
[366397455,1750230653252,-658.75,0.00016602,2]
[366397456,1750230653262,-490.0,0.00016602,2]
[366397457,1750230653271,-1967.95,0.00016602,2]
[366397458,1750230653281,-490.0,0.00016602,2]
[366397459,1750230653291,-1491.99,0.00016602,2]
[366397460,1750230653301,-490.0,0.00016602,2]
[366397461,1750230653311,-490.0,0.00016602,2]
[366397462,1750230653321,-490.0,0.00016602,2]
[366397463,1750230653331,-490.0,0.00016602,2]
[366397464,1750230653341,-1758.45,0.00016602,2]
[366397465,1750230653350,-490.0,0.00016602,2]
[366397466,1750230653360,-490.0,0.00016602,2]
[366397467,1750230653370,-567.44,0.00016602,2]
[366397468,1750230653380,-490.0,0.00016602,2]
[366397469,1750230653389,-490.0,0.00016602,2]
[366397470,1750230653399,-2345.48,0.00016602,2]
[366397471,1750230653409,-488.27955624,0.00016602,2]
[366397472,1750230653419,-668.88,0.00016602,2]
[366397473,1750230653429,-1040.3,0.00016602,2]
[366397474,1750230653439,-605.25,0.00016602,2]
[366397475,1750230653448,-699.75,0.00016602,2]
[366397476,1750230653458,-490.0,0.00016602,2]
[366397477,1750230653468,-490.0,0.00016602,2]
[366397478,1750230653478,-490.0,0.00016602,2]
[366397479,1750230653487,-490.0,0.00016602,2]
[366397480,1750230653785,-442.76765793,0.00016602,2]
[366397481,1750230653808,-1757.44,0.00016602,2]
[366397482,1750230653817,-490.0,0.00016602,2]
[366397483,1750230653827,-490.0,0.00016602,2]
[366397484,1750230653837,-490.0,0.00016602,2]
[366397485,1750230653847,-932.24,0.00016602,2]
[366397486,1750230653857,-497.77,0.00016602,2]
[366397487,1750230653868,-490.0,0.00016602,2]
[366397488,1750230653877,-490.0,0.00016602,2]
[366397489,1750230653887,-490.0,0.00016602,2]
[366397490,1750230653898,-490.0,0.00016602,2]
[366397491,1750230653907,-1182.93,0.00016602,2]
[366397492,1750230653917,-490.0,0.00016602,2]
[366397493,1750230653927,-1470.34,0.00016602,2]
[366397494,1750230653937,-490.0,0.00016602,2]
[366397495,1750230653948,-490.0,0.00016602,2]
[366397496,1750230653957,-490.0,0.00016602,2]
[366397497,1750230653967,-490.0,0.00016602,2]
[366397498,1750230653977,-731.38,0.00016602,2]
[366397499,1750230653987,-490.0,0.00016602,2]
[366397500,1750230653996,-567.51,0.00016602,2]
[366397501,1750230654006,-490.0,0.00016602,2]
[366397502,1750230654016,-490.0,0.00016602,2]
[366397503,1750230654026,-1972.08,0.00016602,2]
[366397504,1750230654035,-574.95,0.00016602,2]
[366397505,1750230654045,-502.41,0.00016602,2]
[366397506,1750230654054,-512.73,0.00016602,2]
[366397507,1750230654064,-490.0,0.00016602,2]
[366397508,1750230654073,-1611.48,0.00016602,2]
[366397509,1750230654083,-490.0,0.00016602,2]
[366397510,1750230654093,-490.0,0.00016602,2]
[366397511,1750230654107,-490.0,0.00016602,2]
[366397512,1750230654117,-490.0,0.00016602,2]
[366397513,1750230654127,-490.0,0.00016602,2]
[366397514,1750230654137,-490.0,0.00016602,2]
[366397515,1750230654146,-1366.99,0.00016602,2]
[366397516,1750230654156,-490.0,0.00016602,2]
[366397517,1750230654166,-539.59,0.00016602,2]
[366397518,1750230654175,-490.0,0.00016602,2]
[366397519,1750230654185,-593.86,0.00016602,2]
[366397520,1750230654195,-540.65,0.00016602,2]
[366397521,1750230654205,-490.0,0.00016602,2]
[366397522,1750230654214,-490.0,0.00016602,2]
[366397523,1750230654224,-490.0,0.00016602,2]
[366397524,1750230654234,-1000.0,0.00016602,2]
[366397525,1750230654243,-778.8,0.00016602,2]
[366397526,1750230654253,-490.0,0.00016602,2]
[366397527,1750230654262,-503.94,0.00016602,2]
[366397528,1750230654272,-490.0,0.00016602,2]
[366397529,1750230654282,-1228.42,0.00016602,2]
[366397530,1750230654291,-490.0,0.00016602,2]
[366397531,1750230654301,-490.0,0.00016602,2]
[366397532,1750230654311,-2046.85,0.00016602,2]
[366397533,1750230654320,-490.0,0.00016602,2]
[366397534,1750230654329,-502.78,0.00016602,2]
[366397535,1750230654339,-490.0,0.00016602,2]
[366397536,1750230654349,-710.87,0.00016602,2]
[366397537,1750230654358,-668.18,0.00016602,2]
[366397538,1750230654368,-678.96,0.00016602,2]
[366397539,1750230654377,-1728.94,0.00016602,2]
[366397540,1750230654387,-578.87,0.00016602,2]
[366397541,1750230654397,-1145.23,0.00016602,2]
[366397542,1750230654407,-1325.13,0.00016602,2]
[366397543,1750230654417,-1841.51,0.00016602,2]
[366397544,1750230654426,-490.0,0.00016602,2]
[366397545,1750230654436,-2243.18,0.00016602,2]
[366397546,1750230654446,-490.0,0.00016602,2]
[366397547,1750230654456,-812.82,0.00016602,2]
[366397548,1750230654466,-490.0,0.00016602,2]
[366397549,1750230654476,-648.63,0.00016602,2]
[366397550,1750230654486,-490.0,0.00016602,2]
[366397551,1750230654496,-632.74,0.00016602,2]
[366397552,1750230654505,-434.80920809,0.00016602,2]
[366397553,1750230654515,-1166.03,0.00016602,2]
[366397554,1750230654526,-490.0,0.00016602,2]
[366397555,1750230654535,-2204.29,0.00016602,2]
[366397556,1750230654546,-490.0,0.00016602,2]
[366397557,1750230654555,-490.0,0.00016602,2]
[366397558,1750230654565,-1567.64,0.00016602,2]
[366397559,1750230654575,-3764.5,0.00016602,2]
[366397560,1750230654585,-1130.61,0.00016602,2]
[366397561,1750230654595,-490.0,0.00016602,2]
[366397562,1750230654604,-577.22635076,0.00016602,2]
[366397563,1750230654615,-490.0,0.00016602,2]
[366397564,1750230654625,-490.0,0.00016602,2]
[366397565,1750230654635,-490.0,0.00016602,2]
[366397566,1750230654645,-490.0,0.00016602,2]
[366397567,1750230654656,-490.0,0.00016602,2]
[366397568,1750230654665,-628.67,0.00016602,2]
[366397569,1750230654675,-490.0,0.00016602,2]
[366397570,1750230654685,-17594.43,0.00016602,2]
[366397571,1750230654695,-1039.44,0.00016602,2]
[366397572,1750230654704,-490.0,0.00016602,2]
[366397573,1750230654714,-1839.44,0.00016602,2]
[366397574,1750230654724,-490.0,0.00016602,2]
[366397575,1750230654734,-490.0,0.00016602,2]
[366397576,1750230654743,-1599.47,0.00016602,2]
[366397577,1750230654753,-490.0,0.00016602,2]
[366397578,1750230654763,-4919.38,0.00016602,2]
[366397579,1750230654773,-2306.21,0.00016602,2]
[366397580,1750230654783,-908.5,0.00016602,2]
[366397581,1750230654793,-7771.26,0.00016602,2]
[366397582,1750230654803,-638.96,0.00016602,2]
[366397583,1750230654813,-1450.05,0.00016602,2]
[366397584,1750230654823,-1049.31,0.00016602,2]
[366397585,1750230654833,-490.0,0.00016602,2]
[366397586,1750230654842,-490.0,0.00016602,2]
[366397587,1750230654852,-490.0,0.00016602,2]
[366397588,1750230654864,-1599.41,0.00016602,2]
[366397589,1750230654874,-490.0,0.00016602,2]
[366397590,1750230654884,-1275.32,0.00016602,2]
[366397591,1750230654894,-490.0,0.00016602,2]
[366397592,1750230654904,-1295.99,0.00016602,2]
[366397593,1750230654914,-490.0,0.00016602,2]
[366397594,1750230654924,-1297.62,0.00016602,2]
[366397595,1750230654934,-490.0,0.00016602,2]
[366397596,1750230654943,-490.0,0.00016602,2]
[366397597,1750230654952,-992.92,0.00016602,2]
[366397598,1750230654963,-5852.3,0.00016602,2]
[366397599,1750230654972,-612.2732131,0.00016602,2]
[366397600,1750230654982,-176.13037013,0.00016602,2]
[366397601,1750230654991,-2627.42,0.00016602,2]
[366397602,1750230655001,-151.0,0.00016602,2]
[366397603,1750230655011,-1026.94,0.00016602,2]
[366397604,1750230655021,-6537.15,0.00016602,2]
[366397605,1750230655032,-490.0,0.00016602,2]
[366397606,1750230655042,-4456.64,0.00016602,2]
[366397607,1750230655051,-910.354394,0.00016602,2]
[366397608,1750230655062,-1575.57,0.00016602,2]
[366397609,1750230655072,-556.34,0.00016602,2]
[366397610,1750230655082,-490.0,0.00016602,2]
[366397611,1750230655092,-869.12,0.00016602,2]
[366397612,1750230655103,-1160.61,0.00016602,2]
[366397613,1750230655115,-490.0,0.00016602,2]
[366397614,1750230655125,-1261.68,0.00016602,2]
[366397615,1750230655134,-490.0,0.00016602,2]
[366397616,1750230655144,-2084.82,0.00016602,2]
[366397617,1750230655154,-1697.96,0.00016602,2]
[366397618,1750230655163,-677.55,0.00016602,2]
[366397619,1750230655173,-22297.49,0.00016602,2]
[366397620,1750230655183,-2836.93,0.00016602,2]
[366397621,1750230655192,-490.0,0.00016602,2]
[366397622,1750230655201,-490.0,0.00016602,2]
[366397623,1750230655211,-678.79,0.00016602,2]
[366397624,1750230655221,-578.87,0.00016602,2]
[366397625,1750230655231,-3449.48,0.00016602,2]
[366397626,1750230655241,-490.0,0.00016602,2]
[366397627,1750230655250,-490.0,0.00016602,2]
[366397628,1750230655259,-563.11,0.00016602,2]
[366397629,1750230655269,-1723.04,0.00016602,2]
[366397630,1750230655279,-1391.9,0.00016602,2]
[366397631,1750230655288,-7860.02,0.00016602,2]
[366397632,1750230655299,-953.34,0.00016602,2]
[366397633,1750230655309,-1141.59,0.00016602,2]
[366397634,1750230655318,-1585.97,0.00016602,2]
[366397635,1750230655328,-490.0,0.00016602,2]
[366397636,1750230655338,-809.73,0.00016602,2]
[366397637,1750230655347,-1291.35,0.00016602,2]
[366397638,1750230655358,-490.0,0.00016602,2]
[366397639,1750230655369,-490.0,0.00016602,2]
[366397640,1750230655379,-1204.62,0.00016602,2]
[366397641,1750230655388,-4500.06,0.00016602,2]
[366397642,1750230655399,-490.0,0.00016602,2]
[366397643,1750230655408,-3345.89,0.00016602,2]
[366397644,1750230655418,-2551.37,0.00016602,2]
[366397645,1750230655429,-1975.17,0.00016602,2]
[366397646,1750230655439,-1631.99,0.00016602,2]
[366397647,1750230655448,-490.0,0.00016602,2]
[366397648,1750230655458,-2926.027524,0.00016602,2]
[366397649,1750230655469,-490.0,0.00016602,2]
[366397650,1750230655479,-490.0,0.00016602,2]
[366397651,1750230655489,-1195.4,0.00016602,2]
[366397652,1750230655499,-521.03,0.00016602,2]
[366397653,1750230655508,-531.77,0.00016602,2]
[366397654,1750230655518,-594.13,0.00016602,2]
[366397655,1750230655527,-490.0,0.00016602,2]
[366397656,1750230655537,-1307.28,0.00016602,2]
[366397657,1750230655546,-1154.18,0.00016602,2]
[366397658,1750230655556,-490.0,0.00016602,2]
[366397659,1750230655566,-502.20440282,0.00016602,2]
[366397660,1750230655576,-490.0,0.00016602,2]
[366397661,1750230655587,-490.0,0.00016602,2]
[366397662,1750230655597,-692.43,0.00016602,2]
[366397663,1750230655607,-803.54,0.00016602,2]
[366397664,1750230655618,-4482.7,0.00016602,2]
[366397665,1750230655628,-818.29,0.00016602,2]
[366397666,1750230655638,-1151.91,0.00016602,2]
[366397667,1750230655648,-490.0,0.00016602,2]
[366397668,1750230655658,-2889.51,0.00016602,2]
[366397669,1750230655668,-1317.23,0.00016602,2]
[366397670,1750230655678,-3062.38,0.00016602,2]
[366397671,1750230655688,-501.36442655,0.00016602,2]
[366397672,1750230655698,-1984.01,0.00016602,2]
[366397673,1750230655708,-490.0,0.00016602,2]
[366397674,1750230655719,-1984.74,0.00016602,2]
[366397675,1750230655728,-490.0,0.00016602,2]
[366397676,1750230655738,-7478.91,0.00016602,2]
[366397677,1750230655747,-490.0,0.00016602,2]
[366397678,1750230655757,-490.0,0.00016602,2]
[366397679,1750230655768,-3362.37,0.00016602,2]
[366397680,1750230655778,-1923.45,0.00016602,2]
[366397681,1750230655787,-538.21,0.00016602,2]
[366397682,1750230655797,-490.0,0.00016602,2]
[366397683,1750230655807,-490.0,0.00016602,2]
[366397684,1750230655817,-1573.93,0.00016602,2]
[366397685,1750230655827,-490.0,0.00016602,2]
[366397686,1750230655838,-9366.78,0.00016602,2]
[366397687,1750230655848,-2167.41,0.00016602,2]
[366397688,1750230655858,-1871.26,0.00016602,2]
[366397689,1750230655872,-298.17435014,0.00016602,2]
[366397690,1750230655882,-6434.11,0.00016602,2]
[366397691,1750230655892,-909.57,0.00016602,2]
[366397692,1750230655902,-490.0,0.00016602,2]
[366397693,1750230655912,-1776.09,0.00016602,2]
[366397694,1750230655921,-490.0,0.00016602,2]
[366397695,1750230655931,-609.28,0.00016602,2]
[366397696,1750230655941,-1298.54,0.00016602,2]
[366397697,1750230655951,-874.17,0.00016602,2]
[366397698,1750230655960,-1551.59,0.00016602,2]
[366397699,1750230655970,-525.73,0.00016602,2]
[366397700,1750230655980,-2501.31,0.00016602,2]
[366397701,1750230655990,-490.0,0.00016602,2]
[366397702,1750230655999,-490.0,0.00016602,2]
[366397703,1750230656008,-490.0,0.00016602,2]
[366397704,1750230656018,-3649.19,0.00016602,2]
[366397705,1750230656029,-490.0,0.00016602,2]
[366397706,1750230656039,-3302.65,0.00016602,2]
[366397707,1750230656048,-490.0,0.00016602,2]
[366397708,1750230656058,-629.72,0.00016602,2]
[366397709,1750230656068,-490.0,0.00016602,2]
[366397710,1750230656078,-5364.63,0.00016602,2]
[366397711,1750230656088,-1860.01,0.00016602,2]
[366397712,1750230656098,-490.0,0.00016602,2]
[366397713,1750230656111,-490.0,0.00016602,2]
[366397714,1750230656121,-490.0,0.00016602,2]
[366397715,1750230656131,-786.97,0.00016602,2]
[366397716,1750230656140,-490.0,0.00016602,2]
[366397717,1750230656150,-709.03,0.00016602,2]
[366397718,1750230656161,-490.0,0.00016602,2]
[366397719,1750230656170,-615.53,0.00016602,2]
[366397720,1750230656180,-2388.51,0.00016602,2]
[366397721,1750230656190,-169.135622,0.00016602,2]
[366397722,1750230656203,-169.135622,0.00016602,2]
[366397723,1750230656215,-1015.18,0.00016602,2]
[366397724,1750230656224,-2485.5,0.00016602,2]
[366397725,1750230656233,-151.0,0.00016602,2]
[366397726,1750230656244,-490.0,0.00016602,2]
[366397727,1750230656253,-169.135622,0.00016602,2]
[366397728,1750230656263,-879.72,0.00016602,2]
[366397729,1750230656272,-169.135622,0.00016602,2]
[366397730,1750230656283,-796.88,0.00016602,2]
[366397731,1750230656292,-169.135622,0.00016602,2]
[366397732,1750230656303,-169.135622,0.00016602,2]
[366397733,1750230656312,-169.135622,0.00016602,2]
[366397734,1750230656321,-2771.78,0.00016602,2]
[366397735,1750230656331,-169.135622,0.00016602,2]
[366397736,1750230656341,-499.28400562,0.00016602,2]
[366397737,1750230656351,-1125.93,0.00016602,2]
[366397738,1750230656360,-1845.91,0.00016602,2]
[366397739,1750230656370,-151.0,0.00016602,2]
[366397740,1750230656379,-355.01971392,0.00016602,2]
[366397741,1750230656389,-8590.2,0.00016602,2]
[366397742,1750230656398,-151.0,0.00016602,2]
[366397743,1750230656407,-151.0,0.00016602,2]
[366397744,1750230656416,-151.0,0.00016602,2]
[366397745,1750230656425,-12341.89,0.00016602,2]
[366397746,1750230656435,-2422.37,0.00016602,2]
[366397747,1750230656445,-1290.97,0.00016602,2]
[366397748,1750230656455,-490.0,0.00016602,2]
[366397749,1750230656465,-490.0,0.00016602,2]
[366397750,1750230656475,-4651.83,0.00016602,2]
[366397751,1750230656484,-490.0,0.00016602,2]
[366397752,1750230656494,-3335.94,0.00016602,2]
[366397753,1750230656503,-1432.99,0.00016602,2]
[366397754,1750230656512,-746.85,0.00016602,2]
[366397755,1750230656522,-1400.67,0.00016602,2]
[366397756,1750230656531,-8108.88,0.00016602,2]
[366397757,1750230656541,-467.32361705,0.00016602,2]
[366397758,1750230656550,-1255.38,0.00016602,2]
[366397759,1750230656559,-151.0,0.00016602,2]
[366397760,1750230656570,-151.0,0.00016602,2]
[366397761,1750230656579,-490.0,0.00016602,2]
[366397762,1750230656588,-151.0,0.00016602,2]
[366397763,1750230656598,-3173.6,0.00016602,2]
[366397764,1750230656607,-3395.91,0.00016602,2]
[366397765,1750230656619,-151.0,0.00016602,2]
[366397766,1750230656628,-1236.02,0.00016602,2]
[366397767,1750230656638,-153.153755,0.00016602,2]
[366397768,1750230656647,-490.0,0.00016602,2]
[366397769,1750230656656,-656.81,0.00016602,2]
[366397770,1750230656666,-151.0,0.00016602,2]
[366397771,1750230656676,-2439.42,0.00016602,2]
[366397772,1750230656686,-153.246798,0.00016602,2]
[366397773,1750230656695,-490.0,0.00016602,2]
[366397774,1750230656704,-1790.7,0.00016602,2]
[366397775,1750230656714,-490.0,0.00016602,2]
[366397776,1750230656725,-1871.28,0.00016602,2]
[366397777,1750230656735,-490.0,0.00016602,2]
[366397778,1750230656745,-6313.64,0.00016602,2]